bitfinex-derivatives/quotes_SOLF0:USTF0_20250705
["timestamp","ask_amount","ask_price","bid_price","bid_amount"]
[1751741405535,4.75295588,146.27,146.2,196.92]
[1751741405735,6.8364,146.24,146.2,196.92]
[1751741406131,4.75295588,146.27,146.2,196.92]
[1751741407022,6.836,146.25,146.22,6.837]
[1751741409335,6.8355,146.26,146.23,6.8368]
[1751741409729,4.75295588,146.27,146.2,196.92]
[1751741411632,6.8361,146.25,146.22,6.8371]
[1751741412732,6.8364,146.24,146.21,6.8376]
[1751741414039,4.75295588,146.27,146.2,196.92]
[1751741414337,4.75845309,146.27,146.2,196.92]
[1751741415037,8.70047071,146.26,146.2,196.92]
[1751741415233,4.75845309,146.27,146.2,196.92]
[1751741415434,4.75845309,146.25,146.18,46.66]
[1751741415634,6.8381,146.21,146.18,243.76]
[1751741416747,6.8381,146.21,146.18,46.66]
[1751741416940,6.8381,146.21,146.19,197.1]
[1751741418531,4.76154413,146.24,146.18,46.66]
[1751741418736,13.27709398,146.23,146.19,197.08]
[1751741419039,4.76154413,146.24,146.19,197.08]
[1751741419538,11.59814413,146.24,146.21,6.8377]
[1751741420043,8.719461,146.23,146.21,6.8377]
[1751741420240,11.59814413,146.24,146.21,6.8377]
[1751741421242,6.8368,146.23,146.2,6.838]
[1751741429847,4.76154413,146.24,146.19,197.08]
[1751741430049,4.76154413,146.22,146.2,196.92]
[1751741430443,11.59904413,146.22,146.2,196.92]
[1751741431048,6.8377,146.21,146.2,196.92]
[1751741434046,6.8375,146.22,146.2,196.92]
[1751741435148,6.8375,146.22,146.19,6.8387]
[1751741435452,16.65762257,146.26,146.21,196.92]
[1751741435647,8.71299457,146.25,146.21,196.92]
[1751741435847,8.71299457,146.24,146.22,6.8371]
[1751741436047,2.4133,146.26,146.22,6.8371]
[1751741436247,15.79753161,146.25,146.22,6.8371]
[1751741436450,8.71671902,146.24,146.22,6.8371]
[1751741436748,6.8362,146.25,146.22,6.8371]
[1751741436953,8.71693393,146.24,146.22,6.8371]
[1751741437153,6.8362,146.25,146.22,6.8371]
[1751741437949,8.72020372,146.24,146.22,6.8371]
[1751741438151,6.8362,146.25,146.22,6.8371]
[1751741438349,8.72464839,146.24,146.22,6.8371]
[1751741438655,6.8362,146.25,146.22,6.8371]
[1751741438848,8.72479646,146.24,146.22,6.8371]
[1751741439047,6.8362,146.25,146.22,6.8371]
[1751741439254,8.72847064,146.24,146.22,6.8371]
[1751741439453,6.8362,146.25,146.22,6.8371]
[1751741439654,8.72861624,146.24,146.23,6.8368]
[1751741440357,8.72861624,146.24,146.22,6.8371]
[1751741440558,6.836,146.25,146.22,6.8371]
[1751741440757,8.73072661,146.24,146.22,6.8371]
[1751741440958,6.836,146.25,146.22,6.8371]
[1751741441158,8.7307311,146.24,146.23,6.8367]
[1751741442358,8.7307311,146.24,146.22,6.837]
[1751741442556,6.836,146.25,146.22,6.837]
[1751741442758,8.74251103,146.24,146.22,6.837]
[1751741443056,4.75849987,146.25,146.21,196.92]
[1751741443260,15.83587083,146.24,146.21,196.92]
[1751741443453,4.75849987,146.25,146.21,196.92]
[1751741443758,6.8371,146.23,146.21,196.92]
[1751741443961,6.8371,146.23,146.22,196.96]
[1751741444257,15.58041891,146.23,146.22,196.96]
[1751741447161,20.1669815,146.23,146.22,196.96]
[1751741448162,22.71088631,146.23,146.21,196.92]
[1751741448363,8.74331891,146.22,146.21,196.92]
[1751741449264,15.58061891,146.22,146.21,196.92]
[1751741449563,22.7127433,146.22,146.2,196.86]
[1751741449864,6.8373,146.22,146.2,196.86]
[1751741451563,8.78142752,146.21,146.2,196.86]
[1751741452065,8.78142752,146.21,146.2,203.6982]
[1751741454770,6.8365,146.24,146.21,6.8373]
[1751741455064,15.87721305,146.23,146.21,6.8373]
[1751741455259,8.76607471,146.22,146.21,6.8373]
[1751741458068,6.8359,146.25,146.23,6.8366]
[1751741458261,6.8359,146.25,146.24,196.8]
[1751741458462,27.36671925,146.25,146.24,196.8]
[1751741461973,15.86993139,146.25,146.24,196.8]
[1751741462968,15.86993139,146.25,146.24,203.6363]
[1751741463374,15.86993139,146.25,146.24,196.8]
[1751741466379,22.70583139,146.25,146.24,196.8]
[1751741467581,15.86993139,146.25,146.24,203.6363]
[1751741467873,9.55846392,146.28,146.24,196.8]
[1751741468070,9.55846392,146.28,146.25,4.75849987]
[1751741468276,1e-08,146.29,146.25,4.75849987]
[1751741469287,19.52443788,146.32,146.29,6.8338]
[1751741469578,7.17630087,146.31,146.3,196.82]
[1751741470081,14.00940087,146.31,146.3,196.82]
[1751741471374,11.4665938,146.31,146.3,196.82]
[1751741471875,6.8328,146.32,146.3,196.82]
[1751741474583,6.8331,146.31,146.3,196.82]
[1751741474977,14.05824367,146.31,146.3,196.82]
[1751741477383,14.05824367,146.31,146.2,7.0668]
[1751741477384,6.834,146.29,146.25,46.6]
[1751741477572,11.59249987,146.29,146.27,196.66]
[1751741477772,11.59249987,146.29,146.27,196.7]
[1751741478280,11.59249987,146.29,146.25,6.8356]
[1751741478579,11.59249987,146.29,146.26,196.7]
[1751741478778,11.59249987,146.29,146.26,203.5353]
[1751741479881,11.59249987,146.29,146.26,6.8353]
[1751741480083,11.59249987,146.29,146.27,196.68]
[1751741483185,6.8345,146.28,146.27,196.68]
[1751741483789,4.75849987,146.29,146.25,196.64]
[1751741484090,4.75849987,146.27,146.25,196.64]
[1751741484495,11.59369987,146.27,146.25,196.64]
[1751741485888,11.59369987,146.27,146.24,53.4363]
[1751741486092,6.8347,146.28,146.25,203.4959]
[1751741486494,6.8347,146.28,146.25,196.66]
[1751741487899,6.835,146.27,146.25,196.66]
[1751741489094,4.75849987,146.29,146.24,46.6]
[1751741489296,4.75849987,146.27,146.25,196.6]
[1751741489893,7.1112,146.31,146.25,196.6]
[1751741490099,20.58327857,146.3,146.25,196.6]
[1751741490301,15.47920621,146.29,146.25,203.4356]
[1751741490496,6.8343,146.29,146.25,203.4356]
[1751741490693,4.75849987,146.3,146.25,196.6]
[1751741491000,11.59229987,146.3,146.26,6.835]
[1751741492500,6.8341,146.29,146.26,6.835]
[1751741492801,4.75849987,146.3,146.25,203.4355]
[1751741493001,8.63023122,146.29,146.25,203.4355]
[1751741493295,4.75849987,146.3,146.25,203.4355]
[1751741493500,4.75849987,146.3,146.26,6.8352]
[1751741494001,11.59249987,146.3,146.26,6.8352]
[1751741494201,4.75849987,146.3,146.26,6.8352]
[1751741494499,15.46686661,146.29,146.26,6.8352]
[1751741494699,6.8343,146.29,146.26,6.8352]
[1751741495104,6.8345,146.28,146.25,203.4356]
[1751741499202,6.8342,146.29,146.26,6.8354]
[1751741500808,6.8346,146.28,146.25,203.4357]
[1751741501709,6.835,146.27,146.25,203.4357]
[1751741503207,6.835,146.27,146.25,196.6]
[1751741506212,6.8346,146.28,146.25,203.4357]
[1751741506409,8.67859501,146.27,146.25,196.6]
[1751741506609,4.6955,146.31,146.25,196.6]
[1751741506811,6.8345,146.29,146.26,6.8354]
[1751741507011,15.86164057,146.28,146.26,6.8354]
[1751741507312,8.68030042,146.27,146.26,6.8354]
[1751741507715,8.68030042,146.27,146.26,203.4554]
[1751741508114,2.4421,146.31,146.26,196.62]
[1751741508315,15.86493391,146.3,146.26,196.62]
[1751741508518,15.86493391,146.29,146.26,196.62]
[1751741508715,8.68237464,146.28,146.26,196.62]
[1751741508916,6.8336,146.3,146.27,6.8346]
[1751741509115,15.86683311,146.29,146.27,6.8346]
[1751741509412,8.68364359,146.28,146.27,6.8346]
[1751741510418,13.33988525,146.28,146.27,6.8346]
[1751741511819,13.33988525,146.28,146.27,203.4546]
[1751741516922,4.65624166,146.28,146.27,208.21309987]
[1751741517323,66.43673775,146.34,146.28,6.8342]
[1751741517524,6.8331,146.31,146.28,6.8342]
[1751741517822,15.92716785,146.3,146.28,6.8342]
[1751741518016,13.39138196,146.29,146.28,6.8342]
[1751741518726,53.74499987,146.34,146.29,6.8337]
[1751741519023,20.64668148,146.33,146.29,6.8337]
[1751741519222,27.47938148,146.32,146.29,6.8337]
[1751741519526,15.92896271,146.31,146.29,6.8337]
[1751741519720,15.92896271,146.3,146.29,6.8337]
[1751741519915,13.39282839,146.3,146.29,6.8337]
[1751741520121,15.12313788,146.36,146.31,6.8327]
[1751741520322,7.27152206,146.35,146.32,196.52]
[1751741520522,7.27152206,146.34,146.32,196.52]
[1751741520723,7.27152206,146.33,146.32,196.52]
[1751741521922,2.53786984,146.33,146.32,196.52]
[1751741522320,2.53786984,146.33,146.32,203.3526]
[1751741524227,6.8309,146.36,146.33,6.8321]
[1751741524426,7.28512847,146.35,146.33,6.8321]
[1751741524631,2.53630502,146.34,146.32,196.52]
[1751741524828,4.75849987,146.37,146.32,196.52]
[1751741525128,7.28542381,146.36,146.31,6.8328]
[1751741525329,7.28542381,146.35,146.32,196.54]
[1751741525627,2.53640784,146.34,146.32,196.54]
[1751741525828,4.75849987,146.37,146.32,196.54]
[1751741526031,6.8313,146.35,146.33,196.54]
[1751741526226,2.53647966,146.34,146.33,196.54]
[1751741527229,6.8313,146.35,146.33,196.54]
[1751741530034,6.8317,146.34,146.33,196.54]
[1751741531233,6.8313,146.35,146.33,196.54]
[1751741532137,8.66859287,146.34,146.33,196.54]
[1751741532337,6.8313,146.35,146.33,196.54]
[1751741538945,6.8313,146.35,146.33,203.3721]
[1751741540240,6.8313,146.35,146.33,196.54]
[1751741540647,6.8305,146.37,146.33,196.54]
[1751741540851,15.87900191,146.36,146.34,6.8317]
[1751741541043,8.66110064,146.35,146.34,6.8317]
[1751741541243,6.8304,146.37,146.34,6.8317]
[1751741541443,13.3353826,146.36,146.34,6.8317]
[1751741541649,6.8304,146.37,146.34,6.8317]
[1751741541949,13.33458431,146.36,146.34,6.8317]
[1751741542144,6.8304,146.37,146.34,6.8317]
[1751741542352,13.33419697,146.36,146.34,6.8317]
[1751741542547,4.75849987,146.38,146.33,203.3719]
[1751741542848,11.20094015,146.37,146.33,203.3719]
[1751741543048,20.16479969,146.36,146.33,203.3719]
[1751741543248,8.65936701,146.35,146.33,203.3719]
[1751741543450,6.8312,146.36,146.33,203.3719]
[1751741545251,6.8313,146.35,146.33,203.3719]
[1751741547252,4.75849987,146.36,146.31,6.8328]
[1751741547552,8.68731946,146.35,146.32,196.36]
[1751741547752,4.75849987,146.36,146.32,196.36]
[1751741547952,6.8319,146.34,146.32,196.36]
[1751741548149,72.13804233,146.39,146.32,196.36]
[1751741548351,25.48386774,146.38,146.32,196.36]
[1751741548551,15.91625602,146.37,146.32,196.36]
[1751741548753,13.37263703,146.36,146.34,6.8315]
[1751741548951,4.75849987,146.38,146.34,6.8315]
[1751741549152,22.74777911,146.37,146.34,6.8315]
[1751741549357,8.68776329,146.36,146.34,6.8315]
[1751741549559,60.35354034,146.39,146.35,6.8312]
[1751741549754,27.55723806,146.38,146.35,6.8312]
[1751741549948,13.37391221,146.37,146.36,6.8307]
[1751741550253,6.8293,146.4,146.36,6.8307]
[1751741550451,20.71254914,146.39,146.37,196.54]
[1751741550650,7.21703225,146.38,146.37,196.54]
[1751741551650,6.8294,146.39,146.37,203.3703]
[1751741556261,8.70682069,146.38,146.37,203.3703]
[1751741556456,6.8294,146.39,146.37,203.3703]
[1751741556757,2.4286,146.41,146.37,196.54]
[1751741556961,15.98363211,146.4,146.37,196.54]
[1751741557263,48.9568,146.42,146.37,196.54]
[1751741557264,16.53470186,146.43,146.37,196.54]
[1751741557562,6.8285,146.41,146.38,6.8296]
[1751741557758,13.43304903,146.4,146.38,6.8296]
[1751741557958,6.8285,146.41,146.38,6.8296]
[1751741558262,13.43304903,146.4,146.38,6.8296]
[1751741558560,6.8285,146.41,146.39,6.8293]
[1751741558760,13.43267765,146.4,146.39,6.8293]
[1751741559160,8.70516414,146.4,146.39,6.8293]
[1751741559565,13.4326066,146.4,146.39,6.8293]
[1751741560067,8.70516414,146.4,146.39,6.8293]
[1751741560452,9.55800199,146.44,146.39,6.8293]
[1751741560654,20.86982392,146.43,146.39,6.8293]
[1751741560859,16.00610659,146.42,146.39,6.8293]
[1751741561065,13.45429805,146.41,146.39,6.8293]
[1751741561260,6.8282,146.42,146.39,6.8293]
[1751741561459,13.46387848,146.41,146.39,6.8293]
[1751741561659,6.8284,146.41,146.39,6.8293]
[1751741562061,6.8284,146.41,146.38,6.8296]
[1751741563070,6.8282,146.42,146.39,203.2693]
[1751741563268,13.4415066,146.41,146.39,203.2693]
[1751741563567,6.8282,146.42,146.39,203.2693]
[1751741563868,13.44170603,146.41,146.39,203.2693]
[1751741564164,6.8276,146.43,146.4,6.8288]
[1751741564368,9.38239987,146.45,146.39,196.44]
[1751741564562,13.43816548,146.44,146.4,4.75849987]
[1751741564764,2.2829,146.45,146.4,4.75849987]
[1751741564962,20.27403826,146.44,146.42,6.8279]
[1751741565163,6.8271,146.44,146.43,196.5]
[1751741565364,9.1096,146.45,146.43,196.5]
[1751741565667,7.00039987,146.49,146.43,196.5]
[1751741565869,20.86012443,146.48,146.43,196.5]
[1751741566062,6.8264,146.46,146.43,203.3272]
[1751741567771,6.8257,146.47,146.44,6.8269]
[1751741572175,6.8261,146.46,146.43,203.3273]
[1751741573376,6.8261,146.46,146.44,6.8269]
[1751741575078,6.8261,146.46,146.43,203.3272]
[1751741578476,6.8261,146.46,146.44,6.827]
[1751741578781,6.8258,146.47,146.44,6.827]
[1751741586186,6.8262,146.46,146.44,6.827]
[1751741588084,6.8258,146.47,146.44,6.827]
[1751741588287,6.8258,146.47,146.44,6.8269]
[1751741591790,6.8258,146.47,146.44,9.86316582]
[1751741592088,16.58627821,146.51,146.45,3.03626582]
[1751741592290,16.58627821,146.51,146.46,199.15626582]
[1751741592291,24.11474013,146.5,146.46,199.15626582]
[1751741592586,8.75330827,146.49,146.46,199.15626582]
[1751741592787,6.8251,146.49,146.46,205.98206582]
[1751741593188,4.8209456,146.48,146.46,205.98206582]
[1751741593388,6.8251,146.49,146.46,205.98206582]
[1751741593589,4.8209456,146.48,146.46,205.98206582]
[1751741593889,6.8251,146.49,146.46,205.98206582]
[1751741594089,6.8251,146.49,146.46,202.9458]
[1751741594090,4.82205984,146.48,146.46,202.9458]
[1751741594288,6.8251,146.49,146.46,202.9458]
[1751741594480,4.82205984,146.48,146.46,202.9458]
[1751741594680,3.03626582,146.48,146.46,196.12]
[1751741595090,9.86176582,146.48,146.46,196.12]
[1751741599597,6.8256,146.47,146.46,196.12]
[1751741603194,11.66008695,146.47,146.46,196.12]
[1751741604197,20.44207649,146.47,146.46,196.12]
[1751741605001,16.65274231,146.47,146.42,6.8275]
[1751741605195,19.22734347,146.46,146.43,196.08]
[1751741605395,13.62022729,146.45,146.43,196.08]
[1751741605596,3.03626582,146.46,146.43,202.9072]
[1751741605791,13.61775122,146.45,146.43,202.9072]
[1751741605998,13.61775122,146.44,146.43,202.9072]
[1751741608500,13.61775122,146.44,146.42,46.44]
[1751741608700,13.61775122,146.43,146.42,46.44]
[1751741608903,13.61775122,146.43,146.42,242.54]
[1751741610100,13.61775122,146.43,146.42,245.57626582]
[1751741610502,13.61775122,146.43,146.42,49.47626582]
[1751741610799,13.61775122,146.43,146.42,245.57626582]
[1751741611605,13.61775122,146.43,146.42,252.40416582]
[1751741612105,13.61775122,146.43,146.42,56.30416582]
[1751741612305,13.61775122,146.43,146.42,252.40416582]
[1751741615808,4.82809308,146.43,146.42,252.40416582]
[1751741626515,4.82809308,146.43,146.42,249.3679]
[1751741626815,4.82809308,146.43,146.42,252.40416582]
[1751741627617,9.86296582,146.45,146.42,252.40416582]
[1751741627812,8.7741686,146.44,146.42,252.40416582]
[1751741628018,4.81250506,146.43,146.42,252.40416582]
[1751741628319,9.86296582,146.45,146.42,252.40416582]
[1751741628619,13.58640977,146.44,146.42,252.40416582]
[1751741628820,4.81241379,146.43,146.42,252.40416582]
[1751741629318,16.1611677,146.43,146.42,242.54]
[1751741629720,16.1611677,146.43,146.42,46.44]
[1751741629920,16.1611677,146.43,146.42,242.56]
[1751741630617,16.16088339,146.43,146.42,242.56]
[1751741631315,16.16088339,146.43,146.42,46.44]
[1751741631525,16.14920415,146.43,146.42,242.54]
[1751741632514,22.97670415,146.43,146.42,242.54]
[1751741632921,22.97670415,146.43,146.42,46.44]
[1751741633121,22.97670415,146.43,146.42,242.56]
[1751741633723,26.01296997,146.43,146.42,46.44]
[1751741633917,30.93240902,146.43,146.42,242.56]
[1751741634224,26.01296997,146.43,146.42,196.12]
[1751741634619,30.93193709,146.43,146.42,196.12]
[1751741635720,6.8279,146.42,146.4,6.8289]
[1751741636021,4.80099366,146.41,146.4,6.8289]
[1751741636222,13.56182597,146.41,146.4,202.9489]
[1751741636426,13.56182597,146.41,146.4,196.12]
[1751741637125,4.80099366,146.41,146.4,196.12]
[1751741637824,11.62939366,146.41,146.4,196.12]
[1751741638026,14.66565948,146.41,146.38,53.2296]
[1751741638224,6.8289,146.4,146.39,196.12]
[1751741640019,3.03626582,146.41,146.39,196.12]
[1751741640020,9.86486582,146.41,146.39,196.12]
[1751741640223,3.03626582,146.41,146.39,196.12]
[1751741640423,3.03626582,146.42,146.4,196.12]
[1751741640624,16.53018153,146.41,146.4,196.12]
[1751741641522,23.35888153,146.41,146.4,196.12]
[1751741643226,25.92194544,146.41,146.4,196.12]
[1751741644130,23.35888153,146.41,146.4,196.12]
[1751741644331,25.92026827,146.41,146.4,196.12]
[1751741644633,25.92026827,146.41,146.38,46.4]
[1751741644930,9.86496582,146.41,146.39,196.14]
[1751741645129,8.72067712,146.4,146.38,53.2297]
[1751741645332,9.86496582,146.41,146.39,196.12]
[1751741646130,8.7208276,146.4,146.39,196.12]
[1751741646331,9.86496582,146.41,146.39,196.12]
[1751741647134,13.46806666,146.4,146.39,196.12]
[1751741647434,4.755968,146.4,146.39,196.12]
[1751741648132,8.71277599,146.4,146.39,196.12]
[1751741648332,13.46921679,146.4,146.39,196.12]
[1751741649533,20.29811679,146.4,146.39,196.12]
[1751741650332,20.29811679,146.4,146.38,46.4]
[1751741650532,6.8289,146.4,146.39,196.12]
[1751741650732,6.8293,146.39,146.38,46.4]
[1751741650933,23.33742223,146.39,146.38,46.4]
[1751741651133,25.89986261,146.39,146.38,196.14]
[1751741651329,23.33742223,146.39,146.38,196.14]
[1751741651528,6.83,146.38,146.35,9.86726582]
[1751741651832,9.86626582,146.38,146.36,196.14]
[1751741652031,9.86626582,146.38,146.37,196.14]
[1751741652335,6.8304,146.37,146.34,53.2314]
[1751741652631,3.03626582,146.37,146.34,46.4]
[1751741652835,3.03626582,146.36,146.35,196.14]
[1751741653029,19.06967446,146.36,146.34,46.4]
[1751741653228,16.5077183,146.35,146.34,46.4]
[1751741653422,16.5077183,146.35,146.34,242.54]
[1751741653626,23.3389183,146.35,146.34,242.54]
[1751741653834,23.3389183,146.35,146.34,46.4]
[1751741654034,23.3389183,146.35,146.34,242.54]
[1751741654624,16.5077183,146.35,146.3,636.22]
[1751741654832,3.03626582,146.33,146.31,196.14]
[1751741655234,3.03626582,146.33,146.32,196.14]
[1751741655631,3.03626582,146.33,146.3,636.22]
[1751741655836,3.03626582,146.31,146.3,46.4]
[1751741656130,3.03626582,146.31,146.3,242.56]
[1751741656326,3.03626582,146.31,146.3,46.4]
[1751741656538,3.03626582,146.31,146.3,242.56]
[1751741656838,3.03626582,146.32,146.3,242.56]
[1751741657040,3.03626582,146.33,146.3,242.56]
[1751741659538,9.86846582,146.33,146.3,249.3933]
[1751741663744,3.03626582,146.33,146.31,6.833]
[1751741663936,3.03626582,146.33,146.32,196.2]
[1751741665536,9.86836582,146.33,146.32,196.2]
[1751741672852,3.03626582,146.35,146.32,196.2]
[1751741673054,3.03626582,146.36,146.32,196.2]
[1751741673748,9.86736582,146.36,146.33,6.8319]
[1751741674253,3.03626582,146.35,146.33,6.8319]
[1751741676554,9.86746582,146.35,146.33,6.8319]
[1751741677255,3.03626582,146.38,146.34,3.03626582]
[1751741677450,8.60402365,146.37,146.35,196.22]
[1751741677747,6.8303,146.37,146.35,196.22]
[1751741680255,9.86656582,146.37,146.35,196.22]
[1751741693761,9.86696582,146.36,146.35,196.22]
[1751741694361,18.53135624,146.36,146.35,196.22]
[1751741694667,25.78733635,146.36,146.35,196.22]
[1751741695161,6.8313,146.35,146.33,196.16]
[1751741695358,3.03626582,146.35,146.33,196.16]
[1751741696552,6.8317,146.34,146.33,196.16]
[1751741697464,15.5049429,146.34,146.33,196.16]
[1751741698565,8.6732429,146.34,146.33,196.16]
[1751741698867,8.6732429,146.34,146.33,202.9921]
[1751741699368,8.6732429,146.34,146.33,206.02836582]
[1751741699669,3.03626582,146.37,146.34,6.8313]
[1751741699871,15.93064717,146.36,146.34,3.03626582]
[1751741700167,13.3742015,146.35,146.34,3.03626582]
[1751741700370,13.3742015,146.35,146.34,9.86796582]
[1751741701263,13.37349157,146.35,146.34,9.86796582]
[1751741704772,13.37349157,146.35,146.34,6.8317]
[1751741709475,13.37349157,146.35,146.34,9.86796582]
[1751741709668,9.51287821,146.39,146.36,6.8303]
[1751741709865,7.37229415,146.38,146.37,196.16]
[1751741710372,2.55788664,146.38,146.37,196.16]
[1751741713874,2.55788664,146.38,146.37,202.9903]
[1751741714574,2.55788664,146.38,146.37,196.16]
[1751741715772,9.38768664,146.38,146.37,196.16]
[1751741716374,2.55788664,146.38,146.37,196.16]
[1751741719977,9.38768664,146.38,146.37,196.16]
[1751741721580,22.6993973,146.38,146.37,196.16]
[1751741723077,15.8695973,146.38,146.37,196.16]
[1751741724381,15.8695973,146.38,146.37,202.9903]
[1751741727983,15.8695973,146.38,146.37,196.16]
[1751741729586,22.6993973,146.38,146.37,196.16]
[1751741729785,25.73566312,146.38,146.37,196.16]
[1751741736485,25.71751037,146.38,146.37,196.16]
[1751741738788,25.72159962,146.38,146.37,196.16]
[1751741739486,25.72151797,146.38,146.37,196.16]
[1751741743291,30.56359031,146.38,146.37,196.16]
[1751741743493,22.6811629,146.38,146.37,196.16]
[1751741743692,27.52323524,146.38,146.37,196.16]
[1751741746497,15.8513629,146.38,146.37,196.16]
[1751741750899,15.85878909,146.38,146.37,196.16]
[1751741751100,15.85878909,146.38,146.37,206.02968258]
[1751741751497,11.22026063,146.38,146.37,206.02968258]
[1751741751690,8.6549478,146.38,146.37,206.02968258]
[1751741754804,15.88155724,146.38,146.37,206.02968258]
[1751741757703,15.88303403,146.38,146.37,206.02968258]
[1751741758101,13.31401434,146.38,146.37,206.02968258]
[1751741768317,8.6549478,146.38,146.37,206.02968258]
[1751741769917,9.51287821,146.42,146.37,199.19938258]
[1751741770117,12.10636665,146.41,146.39,3.03938258]
[1751741770314,2.4475,146.44,146.4,199.03786507]
[1751741770620,12.10230157,146.43,146.42,6.8279]
[1751741771114,7.22326524,146.43,146.42,6.8279]
[1751741773213,4.66643966,146.43,146.42,6.8279]
[1751741773918,4.66643966,146.43,146.41,6.8282]
[1751741774115,12.31179977,146.44,146.41,6.8282]
[1751741774315,4.6923526,146.43,146.41,6.8282]
[1751741774515,12.31179977,146.44,146.41,6.8282]
[1751741774819,4.69107759,146.43,146.41,6.8282]
[1751741775120,6.8275,146.43,146.41,6.8282]
[1751741776517,12.31189977,146.44,146.41,6.8282]
[1751741776821,4.68884815,146.43,146.41,6.8282]
[1751741777023,12.31189977,146.44,146.41,6.8282]
[1751741778020,12.26149977,146.45,146.42,6.8278]
[1751741778221,7.24409533,146.44,146.43,195.96]
[1751741778726,6.8267,146.45,146.43,195.96]
[1751741779528,6.8267,146.45,146.43,202.7875]
[1751741779727,3.03719977,146.47,146.43,198.99719977]
[1751741780025,7.24004026,146.46,146.44,3.03719977]
[1751741780225,9.86299977,146.47,146.44,6.8268]
[1751741780428,7.23804354,146.46,146.44,6.8268]
[1751741780727,9.86299977,146.47,146.44,6.8268]
[1751741780927,7.23804354,146.46,146.44,6.8268]
[1751741781130,9.86299977,146.47,146.44,6.8268]
[1751741781330,4.68248567,146.46,146.44,6.8268]
[1751741781530,9.86299977,146.47,146.44,6.8268]
[1751741781731,4.68248567,146.46,146.44,6.8268]
[1751741781929,9.86299977,146.47,146.44,6.8268]
[1751741782230,8.6395579,146.46,146.44,6.8268]
[1751741782431,9.86299977,146.47,146.44,6.8268]
[1751741782631,8.6373629,146.46,146.44,6.8268]
[1751741782934,9.86299977,146.47,146.44,6.8268]
[1751741783128,8.6373629,146.46,146.44,6.8268]
[1751741783333,9.86299977,146.47,146.44,6.8268]
[1751741783533,8.63571717,146.46,146.44,6.8268]
[1751741783834,9.86299977,146.47,146.44,6.8268]
[1751741784033,8.63556678,146.46,146.44,6.8268]
[1751741784229,6.8258,146.47,146.44,9.86399977]
[1751741785633,6.8258,146.47,146.44,6.8268]
[1751741785933,6.8258,146.47,146.44,9.86399977]
[1751741788629,12.12189977,146.48,146.45,6.8263]
[1751741788833,12.12189977,146.48,146.46,195.9]
[1751741788834,9.0847,146.48,146.46,195.9]
[1751741789738,9.0847,146.48,146.46,202.726]
[1751741790125,9.51287821,146.51,146.46,195.9]
[1751741790335,12.18557061,146.5,146.46,198.93719977]
[1751741790630,11.67990961,146.49,146.46,195.9]
[1751741790828,3.03719977,146.49,146.46,195.9]
[1751741791025,9.86209977,146.49,146.46,202.726]
[1751741791232,9.86209977,146.49,146.46,195.9]
[1751741791535,3.03719977,146.49,146.46,195.9]
[1751741791736,3.03719977,146.49,146.47,6.8255]
[1751741792431,9.86179977,146.5,146.47,6.8255]
[1751741792640,13.3473573,146.49,146.47,6.8255]
[1751741792840,9.86179977,146.5,146.47,6.8255]
[1751741793034,3.03719977,146.48,146.46,195.9]
[1751741793229,3.03719977,146.47,146.46,195.9]
[1751741796939,9.86259977,146.48,146.46,195.9]
[1751741803150,9.86259977,146.48,146.46,202.726]
[1751741804444,6.8254,146.48,146.46,202.726]
[1751741805245,9.86259977,146.48,146.46,202.726]
[1751741807047,9.86259977,146.48,146.46,195.9]
[1751741808947,6.8256,146.47,146.46,195.9]
[1751741809146,9.86279977,146.47,146.46,195.9]
[1751741809342,14.56892406,146.47,146.46,195.9]
[1751741809542,23.2305209,146.47,146.46,195.9]
[1751741810548,9.86249977,146.48,146.46,195.9]
[1751741811347,15.492311,146.47,146.46,195.9]
[1751741811550,15.492311,146.47,146.46,195.86]